[Event "Titled Tuesday Blitz December 27 Early 2022"]
[White "Yuan, Qingyu"]
[Black "Defend, Balint"]
[WhiteFideId "8609772"]
[BlackFideId "17004853"]
[WhiteElo "2373"]
[BlackElo "1673"]
[Result "1-0"]
[Round "02"]
[TimeControl "180+2"]
[Date "2022.12.27"]
[WhiteClock "0:02:05"]
[BlackClock "0:01:13"]

1. e4 {[%clk 0:03:00]}  c5 {[%clk 0:02:59]} 2. Nf3 {[%clk 0:03:01]}  d6 {[%clk 0:02:59]} 3. d4 {[%clk 0:03:01]}  cxd4 {[%clk 0:03:00]} 4. Nxd4 {[%clk 0:03:02]}  Nf6 {[%clk 0:03:00]} 5. Nc3 {[%clk 0:03:03]}  a6 {[%clk 0:03:00]} 6. Rg1 {[%clk 0:03:03]}  e5 {[%clk 0:02:59]} 7. Nb3 {[%clk 0:03:03]}  Be6 {[%clk 0:02:56]} 8. g4 {[%clk 0:03:03]}  h6 {[%clk 0:02:54]} 9. Bd2 {[%clk 0:03:03]}  Be7 {[%clk 0:02:53]} 10. Qf3 {[%clk 0:02:54]}  Nbd7 {[%clk 0:02:50]} 11. O-O-O {[%clk 0:02:50]}  Qc7 {[%clk 0:02:41]} 12. h4 {[%clk 0:02:46]}  Nh7 {[%clk 0:02:40]} 13. g5 {[%clk 0:02:46]}  hxg5 {[%clk 0:02:41]} 14. hxg5 {[%clk 0:02:46]}  Nhf8 {[%clk 0:02:40]} 15. Kb1 {[%clk 0:02:38]}  b5 {[%clk 0:02:34]} 16. Nd5 {[%clk 0:02:35]}  Bxd5 {[%clk 0:02:34]} 17. exd5 {[%clk 0:02:35]}  Ng6 {[%clk 0:02:28]} 18. Bd3 {[%clk 0:02:32]}  Nc5 {[%clk 0:01:52]} 19. Ba5 {[%clk 0:02:29]}  Qb7 {[%clk 0:01:46]} 20. Nxc5 {[%clk 0:02:24]}  dxc5 {[%clk 0:01:47]} 21. Be4 {[%clk 0:02:25]}  Bd6 {[%clk 0:01:45]} 22. Rh1 {[%clk 0:02:16]}  Ke7 {[%clk 0:01:42]} 23. Qg4 {[%clk 0:02:05]}  Raf8 {[%clk 0:01:13]} 1-0


[Site "https://www.chess.com"]

[Event "Titled Tuesday Blitz December 27 Early 2022"]
[White "Zherebtsova, Alexandra"]
[Black "Roque Sola, Gisela"]
[WhiteFideId "24129518"]
[BlackFideId "5120241"]
[WhiteElo "2155"]
[BlackElo "2061"]
[Result "1-0"]
[Round "02"]
[TimeControl "180+2"]
[Date "2022.12.27"]
[WhiteClock "0:00:18"]
[BlackClock "0:00:02"]

1. d4 {[%clk 0:03:00]}  Nf6 {[%clk 0:02:59]} 2. Nf3 {[%clk 0:02:59]}  e6 {[%clk 0:02:58]} 3. c4 {[%clk 0:02:59]}  d5 {[%clk 0:02:56]} 4. e3 {[%clk 0:02:58]}  Be7 {[%clk 0:02:55]} 5. Nbd2 {[%clk 0:02:58]}  O-O {[%clk 0:02:55]} 6. b3 {[%clk 0:02:59]}  b6 {[%clk 0:02:54]} 7. Bb2 {[%clk 0:03:00]}  Bb7 {[%clk 0:02:54]} 8. Bd3 {[%clk 0:03:00]}  dxc4 {[%clk 0:02:53]} 9. Nxc4 {[%clk 0:02:59]}  c5 {[%clk 0:02:52]} 10. O-O {[%clk 0:02:59]}  Nc6 {[%clk 0:02:45]} 11. Qe2 {[%clk 0:02:55]}  cxd4 {[%clk 0:02:43]} 12. Nxd4 {[%clk 0:02:55]}  Nxd4 {[%clk 0:02:38]} 13. Bxd4 {[%clk 0:02:56]}  Qd5 {[%clk 0:02:27]} 14. f3 {[%clk 0:02:54]}  Rfd8 {[%clk 0:02:25]} 15. Rfd1 {[%clk 0:02:52]}  Qh5 {[%clk 0:02:24]} 16. Bb2 {[%clk 0:02:42]}  Rac8 {[%clk 0:02:16]} 17. Rac1 {[%clk 0:02:34]}  Nd5 {[%clk 0:01:56]} 18. a3 {[%clk 0:01:41]}  Qh6 {[%clk 0:01:29]} 19. b4 {[%clk 0:01:10]}  Bg5 {[%clk 0:01:18]} 20. f4 {[%clk 0:01:03]}  Nxf4 {[%clk 0:00:47]} 21. exf4 {[%clk 0:00:51]}  Bxf4 {[%clk 0:00:48]} 22. h3 {[%clk 0:00:48]}  Bxc1 {[%clk 0:00:30]} 23. Bxc1 {[%clk 0:00:48]}  Qh4 {[%clk 0:00:29]} 24. Bb2 {[%clk 0:00:24]}  Qg3 {[%clk 0:00:27]} 25. Be5 {[%clk 0:00:23]}  Qg5 {[%clk 0:00:20]} 26. Nd6 {[%clk 0:00:21]}  Rc1 {[%clk 0:00:14]} 27. Nxb7 {[%clk 0:00:19]}  Rxd1+ {[%clk 0:00:13]} 28. Qxd1 {[%clk 0:00:19]}  Qxe5 {[%clk 0:00:13]} 29. Nxd8 {[%clk 0:00:19]}  Qd4+ {[%clk 0:00:12]} 30. Kh1 {[%clk 0:00:19]}  g6 {[%clk 0:00:11]} 31. Nc6 {[%clk 0:00:18]}  Qc3 {[%clk 0:00:10]} 32. b5 {[%clk 0:00:17]}  Qxa3 {[%clk 0:00:09]} 33. Qe2 {[%clk 0:00:18]}  Qa1+ {[%clk 0:00:06]} 34. Kh2 {[%clk 0:00:18]}  h5 {[%clk 0:00:07]} 35. Qe4 {[%clk 0:00:18]}  Qc3 {[%clk 0:00:04]} 36. Qd4 {[%clk 0:00:17]}  Qc1 {[%clk 0:00:02]} 37. Qd8+ {[%clk 0:00:17]}  Kg7 {[%clk 0:00:02]} 38. Qd4+ {[%clk 0:00:17]}  Kg8 {[%clk 0:00:01]} 39. Ne5 {[%clk 0:00:17]}  Kg7 {[%clk 0:00:02]} 40. Nd7+ {[%clk 0:00:18]} 1-0


[Site "https://www.chess.com"]

[Event "Titled Tuesday Blitz December 27 Early 2022"]
[White "Alex_Sahakyan2006"]
[Black "Garcia Almaguer, Juan Manuel"]
[BlackFideId "5110491"]
[WhiteElo "2629"]
[BlackElo "2090"]
[Result "1-0"]
[Round "03"]
[TimeControl "180+2"]
[Date "2022.12.27"]
[WhiteClock "0:00:13"]
[BlackClock "0:00:03"]

1. Nf3 {[%clk 0:03:00]}  Nf6 {[%clk 0:02:56]} 2. c4 {[%clk 0:03:00]}  c5 {[%clk 0:02:55]} 3. Nc3 {[%clk 0:02:59]}  Nc6 {[%clk 0:02:54]} 4. e3 {[%clk 0:02:59]}  d6 {[%clk 0:02:51]} 5. d4 {[%clk 0:02:57]}  cxd4 {[%clk 0:02:52]} 6. exd4 {[%clk 0:02:56]}  g6 {[%clk 0:02:53]} 7. d5 {[%clk 0:02:57]}  Nb8 {[%clk 0:02:51]} 8. Be2 {[%clk 0:02:54]}  Bg7 {[%clk 0:02:51]} 9. O-O {[%clk 0:02:55]}  O-O {[%clk 0:02:52]} 10. Be3 {[%clk 0:02:53]}  Ng4 {[%clk 0:02:49]} 11. Bd4 {[%clk 0:02:52]}  Nf6 {[%clk 0:02:40]} 12. h3 {[%clk 0:02:46]}  Nbd7 {[%clk 0:02:38]} 13. Qd2 {[%clk 0:02:45]}  b6 {[%clk 0:02:34]} 14. Rfe1 {[%clk 0:02:40]}  Ba6 {[%clk 0:02:27]} 15. Rac1 {[%clk 0:02:37]}  Rc8 {[%clk 0:02:27]} 16. b3 {[%clk 0:02:37]}  Nc5 {[%clk 0:02:20]} 17. Bf1 {[%clk 0:02:37]}  Re8 {[%clk 0:01:36]} 18. g3 {[%clk 0:02:29]}  e5 {[%clk 0:01:15]} 19. dxe6 {[%clk 0:02:27]}  fxe6 {[%clk 0:01:15]} 20. Be3 {[%clk 0:02:21]}  Bb7 {[%clk 0:01:13]} 21. Bg2 {[%clk 0:02:18]}  Nce4 {[%clk 0:01:13]} 22. Nxe4 {[%clk 0:02:18]}  Nxe4 {[%clk 0:01:14]} 23. Qd3 {[%clk 0:02:16]}  d5 {[%clk 0:01:08]} 24. cxd5 {[%clk 0:02:05]}  exd5 {[%clk 0:00:54]} 25. Rxc8 {[%clk 0:02:03]}  Qxc8 {[%clk 0:00:54]} 26. Rc1 {[%clk 0:01:51]}  Qf5 {[%clk 0:00:52]} 27. Rc7 {[%clk 0:01:41]}  Ba8 {[%clk 0:00:33]} 28. Bd4 {[%clk 0:01:30]}  Bh6 {[%clk 0:00:17]} 29. Qb5 {[%clk 0:01:20]}  Rc8 {[%clk 0:00:13]} 30. Qd7 {[%clk 0:00:53]}  Qxd7 {[%clk 0:00:10]} 31. Rxd7 {[%clk 0:00:54]}  a5 {[%clk 0:00:03]} 32. Bxb6 {[%clk 0:00:46]}  Nc3 {[%clk 0:00:02]} 33. Ne5 {[%clk 0:00:42]}  Nxa2 {[%clk 0:00:02]} 34. Bxa5 {[%clk 0:00:36]}  Nc1 {[%clk 0:00:02]} 35. b4 {[%clk 0:00:32]}  Ne2+ {[%clk 0:00:02]} 36. Kh2 {[%clk 0:00:31]}  d4 {[%clk 0:00:02]} 37. Bxa8 {[%clk 0:00:30]}  Rxa8 {[%clk 0:00:03]} 38. Bb6 {[%clk 0:00:15]}  Bg7 {[%clk 0:00:04]} 39. Nc6 {[%clk 0:00:16]}  Nc3 {[%clk 0:00:04]} 40. Nxd4 {[%clk 0:00:14]}  Ne4 {[%clk 0:00:03]} 41. Ne6 {[%clk 0:00:13]} 1-0


[Site "https://www.chess.com"]

[Event "Titled Tuesday Blitz December 27 Early 2022"]
[White "Altman, Joshua"]
[Black "Ordekalog"]
[WhiteFideId "426210"]
[WhiteElo "2120"]
[BlackElo "2826"]
[Result "0-1"]
[Round "03"]
[TimeControl "180+2"]
[Date "2022.12.27"]
[WhiteClock "0:00:20"]
[BlackClock "0:01:10"]

1. d4 {[%clk 0:03:00]}  d5 {[%clk 0:02:58]} 2. c4 {[%clk 0:03:00]}  e6 {[%clk 0:02:58]} 3. Nc3 {[%clk 0:03:00]}  c5 {[%clk 0:02:59]} 4. cxd5 {[%clk 0:03:00]}  exd5 {[%clk 0:02:59]} 5. Nf3 {[%clk 0:03:00]}  Nc6 {[%clk 0:02:59]} 6. g3 {[%clk 0:03:00]}  Nf6 {[%clk 0:03:00]} 7. Bg2 {[%clk 0:03:00]}  Be7 {[%clk 0:03:00]} 8. O-O {[%clk 0:03:01]}  O-O {[%clk 0:03:01]} 9. Bg5 {[%clk 0:03:00]}  cxd4 {[%clk 0:03:01]} 10. Nxd4 {[%clk 0:03:00]}  h6 {[%clk 0:03:01]} 11. Bf4 {[%clk 0:02:59]}  Bg4 {[%clk 0:03:00]} 12. h3 {[%clk 0:02:56]}  Bh5 {[%clk 0:02:58]} 13. Rc1 {[%clk 0:02:55]}  Qd7 {[%clk 0:02:56]} 14. Qa4 {[%clk 0:02:25]}  Rac8 {[%clk 0:02:53]} 15. Rfd1 {[%clk 0:02:24]}  Rfe8 {[%clk 0:02:51]} 16. Ncb5 {[%clk 0:02:17]}  Bf8 {[%clk 0:02:47]} 17. Nxc6 {[%clk 0:02:13]}  bxc6 {[%clk 0:02:46]} 18. Nd4 {[%clk 0:02:06]}  g5 {[%clk 0:02:30]} 19. Be3 {[%clk 0:01:51]}  c5 {[%clk 0:02:28]} 20. Qxd7 {[%clk 0:01:46]}  Nxd7 {[%clk 0:02:28]} 21. Nf3 {[%clk 0:01:25]}  d4 {[%clk 0:02:28]} 22. Bd2 {[%clk 0:01:23]}  Rxe2 {[%clk 0:02:26]} 23. Nxd4 {[%clk 0:01:20]}  Ree8 {[%clk 0:02:22]} 24. Nf3 {[%clk 0:01:17]}  Ne5 {[%clk 0:02:16]} 25. g4 {[%clk 0:01:14]}  Bg6 {[%clk 0:02:14]} 26. Nxe5 {[%clk 0:01:10]}  Rxe5 {[%clk 0:02:15]} 27. Bc3 {[%clk 0:01:10]}  Re7 {[%clk 0:01:59]} 28. Bf6 {[%clk 0:00:58]}  Re6 {[%clk 0:01:58]} 29. Bc3 {[%clk 0:00:55]}  h5 {[%clk 0:01:50]} 30. Rd7 {[%clk 0:00:53]}  hxg4 {[%clk 0:01:48]} 31. hxg4 {[%clk 0:00:53]}  a6 {[%clk 0:01:42]} 32. Bd5 {[%clk 0:00:44]}  Re2 {[%clk 0:01:39]} 33. Kg2 {[%clk 0:00:43]}  Be4+ {[%clk 0:01:36]} 34. Bxe4 {[%clk 0:00:43]}  Rxe4 {[%clk 0:01:36]} 35. Rh1 {[%clk 0:00:42]}  Rxg4+ {[%clk 0:01:36]} 36. Kf3 {[%clk 0:00:40]}  Rf4+ {[%clk 0:01:29]} 37. Kg3 {[%clk 0:00:39]}  Bg7 {[%clk 0:01:29]} 38. Bxg7 {[%clk 0:00:35]}  Kxg7 {[%clk 0:01:30]} 39. Rh5 {[%clk 0:00:34]}  Kg6 {[%clk 0:01:27]} 40. Rh1 {[%clk 0:00:30]}  Rf6 {[%clk 0:01:17]} 41. Re1 {[%clk 0:00:27]}  Rb8 {[%clk 0:01:15]} 42. b3 {[%clk 0:00:27]}  Rb4 {[%clk 0:01:15]} 43. Re5 {[%clk 0:00:26]}  Rbf4 {[%clk 0:01:13]} 44. Rdd5 {[%clk 0:00:20]}  Rf3+ {[%clk 0:01:11]} 45. Kg2 {[%clk 0:00:20]}  Rxf2+ {[%clk 0:01:12]} 46. Kg1 {[%clk 0:00:21]}  Rf1+ {[%clk 0:01:11]} 47. Kg2 {[%clk 0:00:21]}  R1f2+ {[%clk 0:01:11]} 48. Kg3 {[%clk 0:00:21]}  R6f3+ {[%clk 0:01:10]} 49. Kg4 {[%clk 0:00:22]}  f5+ {[%clk 0:01:09]} 50. Rxf5 {[%clk 0:00:20]}  Rxf5 {[%clk 0:01:10]} 51. Rxf5 {[%clk 0:00:20]}  Rxf5 {[%clk 0:01:10]} 0-1


[Site "https://www.chess.com"]

[Event "Titled Tuesday Blitz December 27 Early 2022"]
[White "Balakrishnan, Praveen"]
[Black "Yaniuk, Volodymyr"]
[WhiteFideId "2064871"]
[BlackFideId "14133083"]
[WhiteElo "2529"]
[BlackElo "2223"]
[Result "1-0"]
[Round "03"]
[TimeControl "180+2"]
[Date "2022.12.27"]
[WhiteClock "0:01:11"]
[BlackClock "0:01:42"]

1. e4 {[%clk 0:03:00]}  e5 {[%clk 0:02:59]} 2. Nf3 {[%clk 0:03:00]}  Nc6 {[%clk 0:02:59]} 3. Bb5 {[%clk 0:02:58]}  Nf6 {[%clk 0:02:59]} 4. O-O {[%clk 0:02:53]}  Nxe4 {[%clk 0:02:59]} 5. d4 {[%clk 0:02:52]}  Nd6 {[%clk 0:03:00]} 6. Bxc6 {[%clk 0:02:49]}  dxc6 {[%clk 0:03:00]} 7. dxe5 {[%clk 0:02:50]}  Nf5 {[%clk 0:03:01]} 8. Qxd8+ {[%clk 0:02:47]}  Kxd8 {[%clk 0:03:02]} 9. Nc3 {[%clk 0:02:46]}  Bd7 {[%clk 0:03:02]} 10. h3 {[%clk 0:02:39]}  Kc8 {[%clk 0:02:59]} 11. g4 {[%clk 0:02:34]}  Ne7 {[%clk 0:02:59]} 12. Ng5 {[%clk 0:02:33]}  Be8 {[%clk 0:02:59]} 13. f4 {[%clk 0:02:31]}  h5 {[%clk 0:02:58]} 14. Kg2 {[%clk 0:02:18]}  hxg4 {[%clk 0:02:58]} 15. hxg4 {[%clk 0:02:18]}  c5 {[%clk 0:02:59]} 16. f5 {[%clk 0:02:10]}  f6 {[%clk 0:02:29]} 17. exf6 {[%clk 0:02:03]}  gxf6 {[%clk 0:02:30]} 18. Ne6 {[%clk 0:02:00]}  Bh6 {[%clk 0:02:23]} 19. Bxh6 {[%clk 0:01:37]}  Rxh6 {[%clk 0:02:23]} 20. Nxc5 {[%clk 0:01:38]}  b6 {[%clk 0:02:16]} 21. Ne6 {[%clk 0:01:34]}  Kb7 {[%clk 0:02:14]} 22. Kg3 {[%clk 0:01:29]}  Bc6 {[%clk 0:02:08]} 23. Rad1 {[%clk 0:01:29]}  Rg8 {[%clk 0:02:06]} 24. Nd8+ {[%clk 0:01:26]}  Kc8 {[%clk 0:02:06]} 25. Nxc6 {[%clk 0:01:22]}  Nxc6 {[%clk 0:02:07]} 26. Rh1 {[%clk 0:01:18]}  Rgh8 {[%clk 0:01:56]} 27. Rxh6 {[%clk 0:01:16]}  Rxh6 {[%clk 0:01:57]} 28. Nd5 {[%clk 0:01:10]}  Ne5 {[%clk 0:01:55]} 29. Ne7+ {[%clk 0:01:11]}  Kb7 {[%clk 0:01:54]} 30. Ng8 {[%clk 0:01:11]}  Rh8 {[%clk 0:01:48]} 31. Nxf6 {[%clk 0:01:11]}  Rg8 {[%clk 0:01:42]} 32. Nxg8 {[%clk 0:01:11]} 1-0


[Site "https://www.chess.com"]

[Event "Titled Tuesday Blitz December 27 Early 2022"]
[White "Baskakov, Egor"]
[Black "Preotu, Razvan"]
[WhiteFideId "24197866"]
[BlackFideId "2613280"]
[WhiteElo "2215"]
[BlackElo "2475"]
[Result "1-0"]
[Round "03"]
[TimeControl "180+2"]
[Date "2022.12.27"]
[WhiteClock "0:01:39"]
[BlackClock "0:00:19"]

1. e4 {[%clk 0:03:00]}  c5 {[%clk 0:03:00]} 2. Nf3 {[%clk 0:02:59]}  d6 {[%clk 0:03:00]} 3. d4 {[%clk 0:02:58]}  cxd4 {[%clk 0:03:01]} 4. Nxd4 {[%clk 0:02:58]}  Nf6 {[%clk 0:03:02]} 5. Nc3 {[%clk 0:02:57]}  a6 {[%clk 0:03:02]} 6. a4 {[%clk 0:02:58]}  e5 {[%clk 0:02:58]} 7. Nde2 {[%clk 0:02:57]}  Be7 {[%clk 0:02:49]} 8. g3 {[%clk 0:02:58]}  O-O {[%clk 0:02:31]} 9. Bg2 {[%clk 0:02:58]}  Be6 {[%clk 0:02:13]} 10. h3 {[%clk 0:02:56]}  Nbd7 {[%clk 0:02:13]} 11. O-O {[%clk 0:02:55]}  Rb8 {[%clk 0:01:32]} 12. a5 {[%clk 0:02:53]}  Qc7 {[%clk 0:01:30]} 13. Be3 {[%clk 0:02:51]}  Rfc8 {[%clk 0:01:30]} 14. b3 {[%clk 0:02:42]}  Nf8 {[%clk 0:01:04]} 15. Qd2 {[%clk 0:02:35]}  Bd7 {[%clk 0:00:50]} 16. Bb6 {[%clk 0:02:19]}  Qc6 {[%clk 0:00:50]} 17. Rfc1 {[%clk 0:02:19]}  Ne6 {[%clk 0:00:48]} 18. Nd5 {[%clk 0:02:09]}  Bf8 {[%clk 0:00:22]} 19. Nb4 {[%clk 0:02:04]}  Qxe4 {[%clk 0:00:22]} 20. Bxe4 {[%clk 0:02:02]}  Nxe4 {[%clk 0:00:23]} 21. Qe3 {[%clk 0:01:55]}  Nf6 {[%clk 0:00:23]} 22. c4 {[%clk 0:01:54]}  h6 {[%clk 0:00:20]} 23. Nd5 {[%clk 0:01:52]}  Nxd5 {[%clk 0:00:20]} 24. cxd5 {[%clk 0:01:53]}  Ng5 {[%clk 0:00:19]} 25. h4 {[%clk 0:01:51]}  Nh7 {[%clk 0:00:20]} 26. Rxc8 {[%clk 0:01:47]}  Rxc8 {[%clk 0:00:21]} 27. Rc1 {[%clk 0:01:47]}  Nf6 {[%clk 0:00:21]} 28. Rxc8 {[%clk 0:01:46]}  Bxc8 {[%clk 0:00:22]} 29. Qc3 {[%clk 0:01:41]}  Bg4 {[%clk 0:00:21]} 30. Qc4 {[%clk 0:01:40]}  h5 {[%clk 0:00:19]} 31. Nc3 {[%clk 0:01:40]}  Nd7 {[%clk 0:00:19]} 32. Qc7 {[%clk 0:01:39]} 1-0


[Site "https://www.chess.com"]

[Event "Titled Tuesday Blitz December 27 Early 2022"]
[White "Berezin, Viktor"]
[Black "Bas Mas, Jose Joaquin"]
[WhiteFideId "14107872"]
[BlackFideId "22219064"]
[WhiteElo "2307"]
[BlackElo "2197"]
[Result "1-0"]
[Round "03"]
[TimeControl "180+2"]
[Date "2022.12.27"]
[WhiteClock "0:00:21"]
[BlackClock "0:00:08"]

1. d4 {[%clk 0:03:00]}  f5 {[%clk 0:02:58]} 2. g3 {[%clk 0:02:59]}  Nf6 {[%clk 0:02:57]} 3. Bg2 {[%clk 0:02:59]}  e6 {[%clk 0:02:57]} 4. Nf3 {[%clk 0:02:58]}  d5 {[%clk 0:02:55]} 5. c4 {[%clk 0:02:59]}  c6 {[%clk 0:02:54]} 6. O-O {[%clk 0:02:59]}  Be7 {[%clk 0:02:53]} 7. b3 {[%clk 0:03:00]}  O-O {[%clk 0:02:52]} 8. Ba3 {[%clk 0:03:00]}  a5 {[%clk 0:02:47]} 9. Bxe7 {[%clk 0:02:58]}  Qxe7 {[%clk 0:02:46]} 10. Nbd2 {[%clk 0:02:57]}  Nbd7 {[%clk 0:02:41]} 11. Ne1 {[%clk 0:02:54]}  b5 {[%clk 0:02:35]} 12. Nd3 {[%clk 0:02:51]}  bxc4 {[%clk 0:02:32]} 13. bxc4 {[%clk 0:02:51]}  Ba6 {[%clk 0:02:31]} 14. Rc1 {[%clk 0:02:50]}  Rfc8 {[%clk 0:02:25]} 15. Re1 {[%clk 0:02:21]}  Ne4 {[%clk 0:02:22]} 16. c5 {[%clk 0:02:16]}  e5 {[%clk 0:02:09]} 17. dxe5 {[%clk 0:02:10]}  Nxe5 {[%clk 0:02:07]} 18. Nxe5 {[%clk 0:02:01]}  Qxe5 {[%clk 0:02:08]} 19. Nf3 {[%clk 0:02:02]}  Qf6 {[%clk 0:02:04]} 20. Nd4 {[%clk 0:01:55]}  Rab8 {[%clk 0:01:40]} 21. e3 {[%clk 0:01:46]}  Rb2 {[%clk 0:01:32]} 22. Rc2 {[%clk 0:01:45]}  Rcb8 {[%clk 0:01:29]} 23. Bf1 {[%clk 0:01:34]}  Bxf1 {[%clk 0:01:09]} 24. Rxf1 {[%clk 0:01:29]}  f4 {[%clk 0:01:05]} 25. Qg4 {[%clk 0:01:01]}  Rxc2 {[%clk 0:00:42]} 26. Nxc2 {[%clk 0:01:02]}  Nxc5 {[%clk 0:00:42]} 27. exf4 {[%clk 0:00:53]}  Qe6 {[%clk 0:00:40]} 28. Qg5 {[%clk 0:00:36]}  h6 {[%clk 0:00:36]} 29. Qh5 {[%clk 0:00:37]}  Qe4 {[%clk 0:00:30]} 30. Ne3 {[%clk 0:00:30]}  d4 {[%clk 0:00:20]} 31. Nf5 {[%clk 0:00:26]}  Rd8 {[%clk 0:00:13]} 32. Qg6 {[%clk 0:00:23]}  Ne6 {[%clk 0:00:08]} 33. Nxh6+ {[%clk 0:00:21]} 1-0


[Site "https://www.chess.com"]

[Event "Titled Tuesday Blitz December 27 Early 2022"]
[White "Bintang, Rasyid A. Hidayat"]
[Black "Taboas Rodriguez, Daniel"]
[WhiteFideId "7105355"]
[BlackFideId "2208466"]
[WhiteElo "1820"]
[BlackElo "2371"]
[Result "1-0"]
[Round "03"]
[TimeControl "180+2"]
[Date "2022.12.27"]
[WhiteClock "0:00:15"]
[BlackClock "0:00:21"]

1. d4 {[%clk 0:03:00]}  d5 {[%clk 0:02:59]} 2. Bf4 {[%clk 0:03:00]}  c6 {[%clk 0:03:00]} 3. e3 {[%clk 0:02:59]}  Qb6 {[%clk 0:03:00]} 4. Nd2 {[%clk 0:02:52]}  Nf6 {[%clk 0:03:00]} 5. Ngf3 {[%clk 0:02:49]}  Qxb2 {[%clk 0:02:59]} 6. Bd3 {[%clk 0:02:46]}  Qb6 {[%clk 0:02:57]} 7. O-O {[%clk 0:02:42]}  Bg4 {[%clk 0:02:57]} 8. h3 {[%clk 0:02:40]}  Bxf3 {[%clk 0:02:57]} 9. Nxf3 {[%clk 0:02:38]}  Qd8 {[%clk 0:02:57]} 10. Rb1 {[%clk 0:02:35]}  Qc8 {[%clk 0:02:53]} 11. c4 {[%clk 0:02:35]}  e6 {[%clk 0:02:52]} 12. Qc2 {[%clk 0:02:32]}  Be7 {[%clk 0:02:50]} 13. Rfc1 {[%clk 0:02:27]}  O-O {[%clk 0:02:49]} 14. Bg5 {[%clk 0:02:27]}  h6 {[%clk 0:02:47]} 15. Bh4 {[%clk 0:02:24]}  Nbd7 {[%clk 0:02:47]} 16. cxd5 {[%clk 0:02:21]}  exd5 {[%clk 0:02:44]} 17. Bf5 {[%clk 0:02:18]}  g6 {[%clk 0:02:21]} 18. Bxg6 {[%clk 0:02:12]}  Re8 {[%clk 0:02:01]} 19. Bf5 {[%clk 0:02:06]}  Kg7 {[%clk 0:01:50]} 20. Ne5 {[%clk 0:02:03]}  Qc7 {[%clk 0:01:45]} 21. Bg3 {[%clk 0:01:39]}  Bd6 {[%clk 0:01:45]} 22. Nxd7 {[%clk 0:01:25]}  Bxg3 {[%clk 0:01:37]} 23. Nxf6 {[%clk 0:01:22]}  Bh2+ {[%clk 0:01:37]} 24. Kh1 {[%clk 0:01:22]}  Kxf6 {[%clk 0:01:38]} 25. Bg4 {[%clk 0:01:18]}  Bd6 {[%clk 0:01:36]} 26. Qf5+ {[%clk 0:01:03]}  Kg7 {[%clk 0:01:36]} 27. Bf3 {[%clk 0:01:01]}  Qe7 {[%clk 0:01:24]} 28. Re1 {[%clk 0:00:58]}  Rab8 {[%clk 0:01:21]} 29. e4 {[%clk 0:00:56]}  Qg5 {[%clk 0:01:08]} 30. Qxg5+ {[%clk 0:00:51]}  hxg5 {[%clk 0:01:08]} 31. exd5 {[%clk 0:00:52]}  Rxe1+ {[%clk 0:01:04]} 32. Rxe1 {[%clk 0:00:51]}  cxd5 {[%clk 0:01:05]} 33. Bxd5 {[%clk 0:00:49]}  b6 {[%clk 0:01:05]} 34. Bb3 {[%clk 0:00:39]}  Rd8 {[%clk 0:01:01]} 35. g3 {[%clk 0:00:39]}  Bb4 {[%clk 0:01:01]} 36. Rd1 {[%clk 0:00:36]}  f5 {[%clk 0:00:59]} 37. Kg2 {[%clk 0:00:36]}  Kf6 {[%clk 0:00:59]} 38. Kf3 {[%clk 0:00:34]}  b5 {[%clk 0:01:00]} 39. d5 {[%clk 0:00:31]}  a5 {[%clk 0:00:59]} 40. a4 {[%clk 0:00:28]}  bxa4 {[%clk 0:00:59]} 41. Bxa4 {[%clk 0:00:29]}  Ke5 {[%clk 0:00:59]} 42. Bc6 {[%clk 0:00:25]}  Rh8 {[%clk 0:00:54]} 43. Rh1 {[%clk 0:00:21]}  Bc5 {[%clk 0:00:45]} 44. h4 {[%clk 0:00:19]}  g4+ {[%clk 0:00:44]} 45. Kg2 {[%clk 0:00:19]}  Kf6 {[%clk 0:00:39]} 46. Re1 {[%clk 0:00:18]}  Rb8 {[%clk 0:00:35]} 47. Re6+ {[%clk 0:00:18]}  Kg7 {[%clk 0:00:36]} 48. d6 {[%clk 0:00:18]}  Rb2 {[%clk 0:00:35]} 49. d7 {[%clk 0:00:16]}  Rxf2+ {[%clk 0:00:35]} 50. Kh1 {[%clk 0:00:17]}  Rf3 {[%clk 0:00:21]} 51. Bxf3 {[%clk 0:00:15]} 1-0


[Site "https://www.chess.com"]

[Event "Titled Tuesday Blitz December 27 Early 2022"]
[White "Bluebaum, Matthias"]
[Black "Yuan, Qingyu"]
[WhiteFideId "24651516"]
[BlackFideId "8609772"]
[WhiteElo "2669"]
[BlackElo "2373"]
[Result "1-0"]
[Round "03"]
[TimeControl "180+2"]
[Date "2022.12.27"]
[WhiteClock "0:02:18"]
[BlackClock "0:00:05"]

1. d4 {[%clk 0:03:00]}  Nf6 {[%clk 0:03:00]} 2. c4 {[%clk 0:03:00]}  e6 {[%clk 0:03:00]} 3. Nc3 {[%clk 0:03:01]}  Bb4 {[%clk 0:03:00]} 4. e3 {[%clk 0:03:02]}  O-O {[%clk 0:03:00]} 5. Bd2 {[%clk 0:03:02]}  d5 {[%clk 0:03:00]} 6. Nf3 {[%clk 0:03:02]}  b6 {[%clk 0:02:59]} 7. cxd5 {[%clk 0:03:03]}  exd5 {[%clk 0:02:59]} 8. Rc1 {[%clk 0:03:04]}  Be7 {[%clk 0:02:49]} 9. Bd3 {[%clk 0:03:02]}  c5 {[%clk 0:02:47]} 10. Ne5 {[%clk 0:03:02]}  Bb7 {[%clk 0:02:45]} 11. O-O {[%clk 0:03:03]}  Nc6 {[%clk 0:02:43]} 12. a3 {[%clk 0:03:03]}  Bd6 {[%clk 0:02:40]} 13. Ng4 {[%clk 0:03:02]}  cxd4 {[%clk 0:02:08]} 14. exd4 {[%clk 0:03:02]}  Nxd4 {[%clk 0:01:43]} 15. Bg5 {[%clk 0:03:01]}  Be7 {[%clk 0:01:36]} 16. Bxh7+ {[%clk 0:03:01]}  Nxh7 {[%clk 0:01:35]} 17. Bxe7 {[%clk 0:03:01]}  Qxe7 {[%clk 0:01:33]} 18. Qxd4 {[%clk 0:03:01]}  Rad8 {[%clk 0:01:26]} 19. Ne3 {[%clk 0:03:02]}  Qf6 {[%clk 0:00:56]} 20. Rcd1 {[%clk 0:02:53]}  Rd7 {[%clk 0:00:39]} 21. Ncxd5 {[%clk 0:02:37]}  Bxd5 {[%clk 0:00:26]} 22. Nxd5 {[%clk 0:02:37]}  Qxd4 {[%clk 0:00:25]} 23. Rxd4 {[%clk 0:02:38]}  Rfd8 {[%clk 0:00:25]} 24. Rfd1 {[%clk 0:02:30]}  Kf8 {[%clk 0:00:18]} 25. R4d3 {[%clk 0:02:31]}  Nf6 {[%clk 0:00:10]} 26. Nb4 {[%clk 0:02:31]}  Rxd3 {[%clk 0:00:08]} 27. Rxd3 {[%clk 0:02:32]}  Rc8 {[%clk 0:00:08]} 28. Rd1 {[%clk 0:02:24]}  a5 {[%clk 0:00:08]} 29. Nd3 {[%clk 0:02:24]}  Rc2 {[%clk 0:00:08]} 30. Kf1 {[%clk 0:02:25]}  Ne4 {[%clk 0:00:08]} 31. Ke1 {[%clk 0:02:25]}  f6 {[%clk 0:00:05]} 32. f3 {[%clk 0:02:26]}  Nd6 {[%clk 0:00:03]} 33. Rd2 {[%clk 0:02:25]}  Rc6 {[%clk 0:00:03]} 34. Kf2 {[%clk 0:02:23]}  Nf5 {[%clk 0:00:02]} 35. Nf4 {[%clk 0:02:22]}  Kf7 {[%clk 0:00:03]} 36. g4 {[%clk 0:02:22]}  Ne7 {[%clk 0:00:03]} 37. h4 {[%clk 0:02:22]}  g5 {[%clk 0:00:02]} 38. hxg5 {[%clk 0:02:21]}  fxg5 {[%clk 0:00:03]} 39. Ne2 {[%clk 0:02:21]}  Kf6 {[%clk 0:00:04]} 40. Nc3 {[%clk 0:02:21]}  Ng6 {[%clk 0:00:03]} 41. Ne4+ {[%clk 0:02:22]}  Ke5 {[%clk 0:00:04]} 42. Nxg5 {[%clk 0:02:22]}  Nf4 {[%clk 0:00:05]} 43. Kg3 {[%clk 0:02:17]}  Rg6 {[%clk 0:00:04]} 44. Nf7+ {[%clk 0:02:17]}  Kf6 {[%clk 0:00:04]} 45. Kxf4 {[%clk 0:02:17]}  Kxf7 {[%clk 0:00:04]} 46. Rd7+ {[%clk 0:02:18]}  Ke8 {[%clk 0:00:05]} 47. Rb7 {[%clk 0:02:18]}  Rc6 {[%clk 0:00:05]} 48. g5 {[%clk 0:02:18]}  Rc2 {[%clk 0:00:04]} 49. Rxb6 {[%clk 0:02:18]}  Rc6 {[%clk 0:00:05]} 50. Rxc6 {[%clk 0:02:18]} 1-0


[Site "https://www.chess.com"]